fUSD/lending_fUSD_20240317
["ID","MTS","AMOUNT","RATE_DAILY","PERIOD"]
[319310013,1710655844473,-16126.1775345,0.000154,2]
[319310015,1710655844483,-1259.41945638,0.000154,2]
[319310016,1710655844492,-530.1369257,0.000154,2]
[319310017,1710655844501,-189.71566836,0.000154,2]
[319310018,1710655844511,-959.0,0.00015435,2]
[319310019,1710655844521,-1378.0,0.00015435,2]
[319310020,1710655844533,-536.0,0.00015435,2]
[319310021,1710655844542,-1227.0,0.00015435,2]
[319310022,1710655844551,-457.0,0.00015435,2]
[319310023,1710655844560,-603.0,0.00015435,2]
[319310024,1710655844569,-1264.0,0.00015435,2]
[319310025,1710655844578,-272.391,0.00015435,2]
[319310026,1710655844588,-357.0,0.00015435,2]
[319310027,1710655844597,-421.082,0.00015435,2]
[319310028,1710655844607,-500.0,0.00015436,2]
[319310029,1710655844616,-500.0,0.00015436,2]
[319310030,1710655844627,-500.0,0.00015436,2]
[319310031,1710655844637,-206.29,0.00015436,2]
[319310032,1710655844645,-727.45,0.00015436,2]
[319310033,1710655844653,-727.45,0.00015436,2]
[319310034,1710655844663,-553.72,0.00015436,2]
[319310035,1710655844672,-553.72,0.00015436,2]
[319310036,1710655844682,-500.0,0.00015436,2]
[319310037,1710655844692,-500.0,0.00015436,2]
[319310038,1710655844701,-500.0,0.00015436,2]
[319310039,1710655844710,-646.08,0.00015436,2]
[319310040,1710655844719,-500.0,0.00015436,2]
[319310041,1710655844728,-500.0,0.00015436,2]
[319310042,1710655844738,-700.19,0.00015436,2]
[319310043,1710655844747,-700.19,0.00015436,2]
[319310044,1710655844756,-575.88,0.00015436,2]
[319310045,1710655844765,-500.0,0.00015436,2]
[319310046,1710655844774,-500.0,0.00015436,2]
[319310047,1710655844786,-604.48,0.00015436,2]
[319310048,1710655844795,-604.48,0.00015436,2]
[319310049,1710655844805,-856.97,0.00015436,2]
[319310050,1710655844814,-500.0,0.00015436,2]
[319310051,1710655844824,-856.97,0.00015436,2]
[319310052,1710655844833,-528.33045053,0.00015436,2]
[319310053,1710655844843,-500.0,0.00015436,2]
[319310054,1710655844852,-500.0,0.00015436,2]
[319310055,1710655844861,-940.95,0.00015436,2]
[319310056,1710655844871,-1076.56,0.00015436,2]
[319310057,1710655844881,-940.95,0.00015436,2]
[319310058,1710655844891,-1076.56,0.00015436,2]
[319310059,1710655844901,-398.71167376,0.00015436,2]
[319310060,1710655844910,-500.0,0.00015436,2]
[319310061,1710655844920,-500.0,0.00015436,2]
[319310062,1710655844929,-500.0,0.00015436,2]
[319310063,1710655844938,-500.0,0.00015436,2]
[319310064,1710655844947,-500.0,0.00015436,2]
[319310065,1710655844957,-500.0,0.00015436,2]
[319310066,1710655844967,-500.0,0.00015436,2]
[319310067,1710655844976,-500.0,0.00015436,2]
[319310068,1710655844985,-174.73,0.00015456,2]
[319310069,1710655844996,-278.0,0.0001547,2]
[319310070,1710655845006,-727.45,0.00015478,2]
[319310071,1710655845015,-727.45,0.00015478,2]
[319310072,1710655845024,-727.45,0.00015478,2]
[319310073,1710655845035,-727.45,0.00015478,2]
[319310074,1710655845045,-727.45,0.00015478,2]
[319310075,1710655845055,-553.72,0.00015478,2]
[319310076,1710655845065,-553.72,0.00015478,2]
[319310077,1710655845075,-553.72,0.00015478,2]
[319310078,1710655845085,-553.72,0.00015478,2]
[319310079,1710655845094,-553.72,0.00015478,2]
[319310080,1710655845104,-500.0,0.00015478,2]
[319310081,1710655845114,-500.0,0.00015478,2]
[319310082,1710655845123,-500.0,0.00015478,2]
[319310083,1710655845133,-500.0,0.00015478,2]
[319310084,1710655845144,-222.09,0.00015478,2]
[319310085,1710655845154,-500.0,0.00015478,2]
[319310086,1710655845163,-500.0,0.00015478,2]
[319310087,1710655845175,-500.0,0.00015478,2]
[319310088,1710655845184,-380.7,0.00015478,2]
[319310089,1710655845194,-700.19,0.00015478,2]
[319310090,1710655845205,-700.19,0.00015478,2]
[319310091,1710655845214,-700.19,0.00015478,2]
[319310092,1710655845225,-700.19,0.00015478,2]
[319310093,1710655845235,-700.19,0.00015478,2]
[319310094,1710655845245,-500.0,0.00015478,2]
[319310095,1710655845254,-500.0,0.00015478,2]
[319310096,1710655845264,-344.72,0.00015478,2]
[319310097,1710655845273,-604.48,0.00015478,2]
[319310098,1710655845284,-604.48,0.00015478,2]
[319310099,1710655845294,-604.48,0.00015478,2]
[319310100,1710655845303,-604.48,0.00015478,2]
[319310101,1710655845313,-604.48,0.00015478,2]
[319310102,1710655845323,-856.97,0.00015478,2]
[319310103,1710655845333,-856.97,0.00015478,2]
[319310104,1710655845343,-856.97,0.00015478,2]
[319310105,1710655845353,-500.0,0.00015478,2]
[319310106,1710655845362,-856.97,0.00015478,2]
[319310107,1710655845372,-500.0,0.00015478,2]
[319310108,1710655845382,-856.97,0.00015478,2]
[319310109,1710655845392,-589.8,0.00015478,2]
[319310110,1710655845402,-1076.56,0.00015478,2]
[319310111,1710655845412,-940.95,0.00015478,2]
[319310112,1710655845421,-1076.56,0.00015478,2]
[319310113,1710655845431,-940.95,0.00015478,2]
[319310114,1710655845441,-1076.56,0.00015478,2]
[319310115,1710655845450,-940.95,0.00015478,2]
[319310116,1710655845460,-1076.56,0.00015478,2]
[319310117,1710655845469,-940.95,0.00015478,2]
[319310118,1710655845478,-1076.56,0.00015478,2]
[319310119,1710655845488,-940.95,0.00015478,2]
[319310120,1710655845497,-407.56,0.00015478,2]
[319310121,1710655845507,-500.0,0.00015478,2]
[319310122,1710655845517,-500.0,0.00015478,2]
[319310123,1710655845526,-500.0,0.00015478,2]
[319310124,1710655845537,-500.0,0.00015478,2]
[319310125,1710655845547,-500.0,0.00015478,2]
[319310126,1710655845556,-500.0,0.00015478,2]
[319310127,1710655845566,-500.0,0.00015478,2]
[319310128,1710655845576,-500.0,0.00015478,2]
[319310129,1710655845585,-423.01815903,0.00015478,2]
[319310130,1710655845594,-500.0,0.00015478,2]
[319310131,1710655845603,-500.0,0.00015478,2]
[319310132,1710655845612,-573.7,0.00015478,2]
[319310133,1710655845621,-727.45,0.00015479,2]
[319310134,1710655845630,-727.45,0.00015479,2]
[319310135,1710655845639,-727.45,0.00015479,2]
[319310136,1710655845648,-727.45,0.00015479,2]
[319310137,1710655845657,-727.45,0.00015479,2]
[319310138,1710655845666,-727.45,0.00015479,2]
[319310139,1710655845675,-727.45,0.00015479,2]
[319310140,1710655845684,-727.45,0.00015479,2]
[319310141,1710655845693,-727.45,0.00015479,2]
[319310142,1710655845702,-727.45,0.00015479,2]
[319310143,1710655845711,-727.59471278,0.00015479,2]
[319310144,1710655845720,-553.72,0.00015479,2]
[319310145,1710655845729,-553.72,0.00015479,2]
[319310146,1710655845738,-553.72,0.00015479,2]
[319310147,1710655845747,-553.72,0.00015479,2]
[319310148,1710655845756,-553.72,0.00015479,2]
[319310149,1710655845765,-553.72,0.00015479,2]
[319310150,1710655845774,-553.72,0.00015479,2]
[319310151,1710655845786,-553.72,0.00015479,2]
[319310152,1710655845796,-553.72,0.00015479,2]
[319310153,1710655845806,-553.72,0.00015479,2]
[319310154,1710655845815,-553.87,0.00015479,2]
[319310155,1710655845825,-700.19,0.00015479,2]
[319310156,1710655845834,-700.19,0.00015479,2]
[319310157,1710655845843,-700.19,0.00015479,2]
[319310158,1710655845853,-700.19,0.00015479,2]
[319310159,1710655845862,-700.19,0.00015479,2]
[319310160,1710655845872,-700.19,0.00015479,2]
[319310161,1710655845882,-700.19,0.00015479,2]
[319310162,1710655845891,-700.19,0.00015479,2]
[319310163,1710655845901,-700.19,0.00015479,2]
[319310164,1710655845910,-700.19,0.00015479,2]
[319310165,1710655845919,-700.32,0.00015479,2]
[319310166,1710655845928,-604.48,0.00015479,2]
[319310167,1710655845938,-604.48,0.00015479,2]
[319310168,1710655845947,-604.48,0.00015479,2]
[319310169,1710655845956,-604.48,0.00015479,2]
[319310170,1710655845965,-604.48,0.00015479,2]
[319310171,1710655845974,-604.48,0.00015479,2]
[319310172,1710655845983,-604.48,0.00015479,2]
[319310173,1710655845993,-604.48,0.00015479,2]
[319310174,1710655846002,-604.48,0.00015479,2]
[319310175,1710655846011,-604.48,0.00015479,2]
[319310176,1710655846021,-604.51,0.00015479,2]
[319310177,1710655846030,-856.97,0.00015479,2]
[319310178,1710655846039,-856.97,0.00015479,2]
[319310179,1710655846049,-856.97,0.00015479,2]
[319310180,1710655846058,-856.97,0.00015479,2]
[319310181,1710655846068,-856.97,0.00015479,2]
[319310182,1710655846077,-856.97,0.00015479,2]
[319310183,1710655846086,-856.97,0.00015479,2]
[319310184,1710655846096,-856.97,0.00015479,2]
[319310185,1710655846105,-856.97,0.00015479,2]
[319310186,1710655846115,-856.97,0.00015479,2]
[319310187,1710655846125,-856.99944723,0.00015479,2]
[319310188,1710655846138,-1076.56,0.00015479,2]
[319310189,1710655846148,-940.95,0.00015479,2]
[319310190,1710655846158,-1076.56,0.00015479,2]
[319310191,1710655846169,-940.95,0.00015479,2]
[319310192,1710655846180,-1076.56,0.00015479,2]
[319310193,1710655846190,-940.95,0.00015479,2]
[319310194,1710655846200,-1076.56,0.00015479,2]
[319310195,1710655846211,-940.95,0.00015479,2]
[319310196,1710655846220,-1076.56,0.00015479,2]
[319310197,1710655846232,-940.95,0.00015479,2]
[319310198,1710655846241,-940.95,0.00015479,2]
[319310199,1710655846252,-940.95,0.00015479,2]
[319310200,1710655846263,-1076.56,0.00015479,2]
[319310201,1710655846273,-1076.56,0.00015479,2]
[319310202,1710655846283,-940.95,0.00015479,2]
[319310203,1710655846293,-940.95,0.00015479,2]
[319310204,1710655846303,-1076.56,0.00015479,2]
[319310205,1710655846354,-1076.56,0.00015479,2]
[319310206,1710655846364,-940.95,0.00015479,2]
[319310207,1710655846374,-1076.56,0.00015479,2]
[319310208,1710655846383,-941.03,0.00015479,2]
[319310209,1710655846393,-1076.6,0.00015479,2]
[319310210,1710655846402,-500.0,0.00015479,2]
[319310211,1710655846411,-500.0,0.00015479,2]
[319310213,1710655846421,-500.0,0.00015479,2]
[319310214,1710655846430,-500.0,0.00015479,2]
[319310216,1710655846439,-340.37,0.00015479,2]
[319310218,1710655846449,-393.68805011,0.0001549,2]
[319310220,1710655846459,-155.63917144,0.00015496,2]
[319310222,1710655846469,-232.02004745,0.00015498,2]
[319310223,1710655846478,-2150.16282483,0.00015498,2]
[319310224,1710655846487,-155.0,0.00015498,2]
[319310225,1710655846496,-741.20580818,0.00015498,2]
[319310226,1710655846505,-296.11090635,0.00015498,2]
[319310227,1710655846515,-200.0,0.00015498,2]
[319310228,1710655846524,-551.95266278,0.00015498,2]
[319310229,1710655846534,-514.20463097,0.00015498,2]
[319310230,1710655846543,-203.49018601,0.00015498,2]
[319310231,1710655846552,-511.86194737,0.00015498,2]
[319310232,1710655846562,-643.80285477,0.00015498,2]
[319310233,1710655846571,-206.77933376,0.00015498,2]
[319310234,1710655846580,-155.35223061,0.00015498,2]
[319310235,1710655846589,-199.1190511,0.00015498,2]
[319310236,1710655846598,-156.51132444,0.00015498,2]
[319310237,1710655846607,-155.69533176,0.00015498,2]
[319310238,1710655846616,-26071.41646866,0.00015498,2]
[319310239,1710655846625,-6213.51582172,0.00015498,2]
[319310240,1710655846634,-271.55242602,0.00015498,2]
[319310241,1710655846644,-165.53329579,0.00015498,2]
[319310242,1710655846653,-184.72118084,0.00015498,2]
[319310243,1710655846662,-232.72387657,0.00015498,2]
[319310244,1710655846671,-217.06708636,0.00015498,2]
[319310245,1710655846681,-290.0615947,0.00015498,2]
[319310246,1710655846690,-4517.94785146,0.00015498,2]
[319310247,1710655846699,-1951.33254364,0.00015498,2]
[319310248,1710655846708,-161.78015288,0.00015498,2]
[319310249,1710655846717,-1983.83687007,0.00015498,2]
[319310250,1710655846727,-794.2643391,0.00015498,2]
[319310251,1710655846737,-262772.0048537,0.00015498,2]
[319310252,1710655846747,-775.19834796,0.00015499,2]
[319310253,1710655846756,-211.70699209,0.00015499,2]
[319310254,1710655846766,-265.53164377,0.00015499,2]
[319310255,1710655846776,-204.58179092,0.00015499,2]
[319310256,1710655846786,-974.20290702,0.00015499,2]
[319310257,1710655846797,-3163.39383317,0.00015499,2]
[319310258,1710655846806,-220.3776993,0.00015499,2]
[319310259,1710655846815,-166.07871829,0.00015499,2]
[319310260,1710655846825,-27560.10763992,0.00015499,2]
[319310262,1710655846834,-879137.17014477,0.00015499,2]
[319310263,1710655846843,-150.0,0.00015499,2]
[319310265,1710655846852,-268.63743581,0.000155,3]
[319310267,1710655846862,-1999834.98355063,0.000155,2]
[319310268,1710655847067,-1168250.95327826,0.000155,2]
[319310269,1710655847080,-1032.465,0.000155,2]
[319310270,1710655847092,-784.2102453,0.000155,2]
[319310271,1710655847245,-500.0,0.00015399,2]
[319310272,1710655847254,-500.0,0.00015399,2]
[319310273,1710655847263,-500.0,0.00015399,2]
[319310274,1710655847273,-500.0,0.00015436,2]
[319310275,1710655847283,-500.0,0.00015436,2]
[319310276,1710655847292,-500.0,0.00015478,2]
[319310277,1710655847302,-91994.38440605,0.000155,2]
[319310278,1710655847314,-250.0,0.000155,2]
[319310279,1710655847326,-1366.10895729,0.000155,2]
[319310280,1710655847350,-355.13073754,0.00015478,2]
[319310281,1710655847359,-350.58926246,0.000155,2]
[319310282,1710655847369,-3501.96,0.000155,2]
[319310283,1710655847380,-69086.8691198,0.000155,2]
[319310284,1710655847391,-741.79293944,0.000155,2]
[319310285,1710655847403,-5161.87513485,0.000155,2]
[319310286,1710655847446,-1954.79815759,0.000155,2]
[319310287,1710655847466,-500.0,0.00015399,2]
[319310288,1710655847476,-24518.37625659,0.000155,2]
[319310289,1710655847487,-8293.80497467,0.000155,2]
[319310290,1710655847499,-835.04991627,0.000155,2]
[319310291,1710655847510,-33773.73373879,0.000155,2]
[319310292,1710655847521,-819.46114386,0.000155,2]
[319310293,1710655847533,-11147.29962502,0.000155,2]
[319310294,1710655847545,-320.26401847,0.000155,2]
[319310295,1710655847565,-468.21,0.00015399,2]
[319310296,1710655847574,-182.85340159,0.000155,2]
[319310297,1710655847608,-1852.42,0.00014607,2]
[319310298,1710655847617,-19024.43348861,0.000155,2]
[319310299,1710655847628,-11441.30868266,0.000155,2]
[319310300,1710655847640,-7729.32326802,0.000155,2]
[319310301,1710655847651,-507.30573655,0.000155,2]
[319310302,1710655847663,-6895.33541699,0.000155,2]
[319310303,1710655847681,-578.97664646,0.000155,2]
[319310304,1710655847693,-585518.61045724,0.000155,2]
[319310305,1710655847705,-4940.94527216,0.000155,2]
[319310306,1710655847717,-323593.85228093,0.000155,2]
[319310307,1710655847728,-506.51052712,0.000155,2]
[319310308,1710655847739,-650.22347624,0.000155,2]
[319310309,1710655847751,-3358.3,0.000155,2]
[319310310,1710655847762,-6130.41652174,0.000155,2]
[319310311,1710655847773,-3160.5631174,0.000155,2]
[319310312,1710655847784,-260.00577968,0.000155,2]
[319310313,1710655847796,-2215.38535822,0.000155,2]
[319310315,1710655886224,1785.53618659,0.00011624,2]
[319310320,1710656300725,-1379.23684559,0.0001245,2]
[319310321,1710656300754,-775.86408371,0.00012451,2]
[319310322,1710656300778,-436.82,0.00012454,2]
[319310325,1710656351985,-588.27132926,0.00013173,2]
[319310326,1710656352011,-159.52126381,0.000139,2]
[319310327,1710656352038,-800.0,0.000139,5]
[319310328,1710656352062,-1236.24,0.00013902,2]
[319310329,1710656352086,-1852.42,0.00013914,2]
[319310330,1710656352110,-250.0,0.00013944,2]
[319310331,1710656352134,-1113.54740693,0.00014,2]
[319310332,1710656460477,-4000.0,0.00013999,2]
[319310333,1710656548569,-538.32,0.00013911,2]
[319310334,1710656548597,-535.24316092,0.00013939,2]
[319310335,1710656548621,-1379.23684559,0.0001394,2]
[319310336,1710656548646,-20847.19999349,0.00013941,2]
[319310337,1710656565779,-1379.23684559,0.0001391,2]
[319310338,1710656565805,-2620.76315441,0.00013941,2]
[319310339,1710656607235,-1052.89324976,0.0001394,2]
[319310340,1710656607256,-432.0368521,0.00013941,2]
[319310341,1710656607277,-1933.04,0.00013969,2]
[319310342,1710656607297,-171.39722441,0.00013999,2]
[319310343,1710656607321,-136.45259307,0.00014,2]
[319310344,1710656607340,-1600.0,0.00014,5]
[319310345,1710656607365,-154.18,0.00014072,2]
[319310346,1710656607384,-2400.0,0.000141,5]
[319310347,1710656607404,-1250.0,0.00014104,2]
[319310348,1710656607425,-461.68,0.00014151,2]
[319310349,1710656607446,-372.6,0.00014163,2]
[319310350,1710656607465,-3200.0,0.000142,5]
[319310351,1710656607485,-1144.3,0.000142,2]
[319310352,1710656607505,-672.89,0.000142,2]
[319310353,1710656607528,-153.78,0.00014254,2]
[319310354,1710656607550,-4100.0,0.000143,5]
[319310355,1710656607570,-800.0,0.000144,5]
[319310356,1710656607589,-800.0,0.000145,5]
[319310357,1710656607609,-800.0,0.000146,5]
[319310358,1710656607631,-800.0,0.000147,5]
[319310359,1710656607652,-192.85,0.00014789,2]
[319310360,1710656607671,-1100.0,0.000148,5]
[319310361,1710656607691,-150.1,0.000153,2]
[319310362,1710656607711,-192.85,0.00015307,2]
[319310363,1710656607731,-217.841185,0.00015342,2]
[319310364,1710656607751,-10429.72018833,0.00015344,2]
[319310365,1710656607772,-6910.34411375,0.00015345,2]
[319310366,1710656607792,-3000.0,0.0001535,2]
[319310367,1710656607811,-25115.01978332,0.00015362,2]
[319310368,1710656607830,-500.0,0.00015399,2]
[319310369,1710656607849,-500.0,0.00015399,2]
[319310370,1710656607869,-500.0,0.00015399,2]
[319310371,1710656607889,-500.0,0.00015399,2]
[319310372,1710656607908,-500.0,0.00015399,2]
[319310373,1710656607928,-500.0,0.00015399,2]
[319310374,1710656607948,-500.0,0.00015399,2]
[319310375,1710656607967,-500.0,0.00015399,2]
[319310376,1710656607987,-600.50368311,0.00015399,2]
[319310377,1710656608006,-500.0,0.00015399,2]
[319310378,1710656608026,-500.0,0.00015399,2]
[319310379,1710656608046,-500.0,0.00015399,2]
[319310380,1710656608066,-500.0,0.00015399,2]
[319310381,1710656608086,-500.0,0.00015399,2]
[319310382,1710656608106,-587.33,0.00015399,2]
[319310383,1710656608126,-502.99956445,0.00015399,2]
[319310384,1710656608146,-500.0,0.00015399,2]
[319310385,1710656608167,-500.0,0.00015399,2]
[319310386,1710656608187,-500.0,0.00015399,2]
[319310387,1710656608209,-500.0,0.00015399,2]
[319310388,1710656608230,-500.0,0.00015399,2]
[319310389,1710656608252,-500.0,0.00015399,2]
[319310390,1710656608272,-500.0,0.00015399,2]
[319310391,1710656608294,-503.37309807,0.00015399,2]
[319310392,1710656608314,-500.0,0.00015399,2]
[319310393,1710656608336,-500.0,0.00015399,2]
[319310394,1710656608358,-500.0,0.00015399,2]
[319310395,1710656608383,-500.0,0.00015399,2]
[319310396,1710656608405,-500.0,0.00015399,2]
[319310397,1710656608426,-500.0,0.00015399,2]
[319310398,1710656608449,-500.0,0.00015399,2]
[319310399,1710656608471,-500.0,0.00015399,2]
[319310400,1710656608491,-502.30357198,0.00015399,2]
[319310401,1710656608512,-494.03017686,0.00015399,2]
[319310402,1710656608535,-500.0,0.00015399,2]
[319310403,1710656608557,-501.48967223,0.00015399,2]
[319310404,1710656608578,-497.53171649,0.00015399,2]
[319310405,1710656608600,-500.0,0.00015399,2]
[319310406,1710656608622,-504.12295875,0.00015399,2]
[319310407,1710656608645,-500.0,0.00015399,2]
[319310408,1710656608667,-500.0,0.00015399,2]
[319310409,1710656608687,-500.0,0.00015399,2]
[319310410,1710656608707,-500.0,0.00015399,2]
[319310411,1710656608728,-500.0,0.00015399,2]
[319310412,1710656608748,-515.32514398,0.00015399,2]
[319310413,1710656608769,-500.0,0.00015399,2]
[319310414,1710656608789,-500.0,0.00015399,2]
[319310415,1710656608810,-500.0,0.00015399,2]
[319310416,1710656608833,-500.0,0.00015399,2]
[319310417,1710656608855,-500.0,0.00015399,2]
[319310418,1710656608879,-501.42166825,0.00015399,2]
[319310419,1710656608902,-500.0,0.00015399,2]
[319310420,1710656608925,-500.0,0.00015399,2]
[319310421,1710656608946,-500.0,0.00015399,2]
[319310422,1710656608971,-507.79242217,0.00015399,2]
[319310423,1710656608992,-507.33569416,0.00015399,2]
[319310424,1710656609014,-520.23235213,0.00015399,2]
[319310425,1710656609035,-500.0,0.00015399,2]
[319310426,1710656609057,-500.0,0.00015399,2]
[319310427,1710656609078,-500.0,0.00015399,2]
[319310428,1710656609099,-500.0,0.00015399,2]
[319310429,1710656609119,-500.0,0.00015399,2]
[319310430,1710656609142,-500.0,0.00015399,2]
[319310431,1710656609163,-500.0,0.00015399,2]
[319310432,1710656609184,-515.11479861,0.00015399,2]
[319310433,1710656609211,-500.0,0.00015399,2]
[319310434,1710656609231,-500.0,0.00015399,2]
[319310435,1710656609263,-500.0,0.00015399,2]
[319310436,1710656609286,-500.0,0.00015399,2]
[319310437,1710656609307,-500.0,0.00015399,2]
[319310438,1710656609332,-500.0,0.00015399,2]
[319310439,1710656609353,-500.0,0.00015399,2]
[319310440,1710656609378,-500.0,0.00015399,2]
[319310441,1710656609401,-501.90737393,0.00015399,2]
[319310442,1710656609422,-500.0,0.00015399,2]
[319310443,1710656609444,-500.0,0.00015399,2]
[319310444,1710656609466,-500.0,0.00015399,2]
[319310445,1710656609486,-500.0,0.00015399,2]
[319310446,1710656609508,-500.0,0.00015399,2]
[319310447,1710656609529,-500.0,0.00015399,2]
[319310448,1710656609550,-500.0,0.00015399,2]
[319310449,1710656609571,-500.0,0.00015399,2]
[319310450,1710656609591,-4133.51484464,0.000154,2]
[319310451,1710656609612,-4348.66928,0.000154,2]
[319310452,1710656609635,-5039.99261709,0.000154,2]
[319310453,1710656609657,-159.52126381,0.000154,2]
[319310454,1710656609678,-1578.07265765,0.000154,2]
[319310455,1710656609700,-244.73580881,0.000154,2]
[319310456,1710656609720,-513.12095566,0.000154,2]
[319310457,1710656609741,-1707.56338851,0.000154,2]
[319310458,1710656609763,-2883.93386342,0.000154,2]
[319310459,1710656609784,-1227.0,0.00015451,2]
[319310460,1710656609804,-457.0,0.00015451,2]
[319310461,1710656609824,-197.044,0.00015451,2]
[319310462,1710656609845,-218.05217346,0.00015483,2]
[319310463,1710656609870,-208.70575114,0.00015498,2]
[319310464,1710656609892,-788.61042369,0.00015498,2]
[319310465,1710656609913,-319.68047165,0.00015498,2]
[319310466,1710656609934,-243.5732213,0.00015498,2]
[319310467,1710656609955,-224.23271556,0.00015498,2]
[319310468,1710656609975,-200.0,0.00015498,2]
[319310469,1710656609996,-628.69111435,0.00015498,2]
[319310470,1710656610017,-281.42650592,0.00015498,2]
[319310471,1710656610038,-1033.72685107,0.00015498,2]
[319310472,1710656610059,-155.97201828,0.00015498,2]
[319310473,1710656610081,-2973.06005346,0.00015498,2]
[319310474,1710656610102,-222.65855213,0.00015498,2]
[319310475,1710656610123,-157.67083797,0.00015498,2]
[319310476,1710656610145,-364.9666219,0.00015498,2]
[319310477,1710656610166,-156.77039272,0.00015498,2]
[319310478,1710656610187,-276.84553998,0.00015498,2]
[319310479,1710656610210,-193.88198054,0.00015498,2]
[319310480,1710656610232,-785.16663039,0.00015498,2]
[319310481,1710656610258,-2166.43570411,0.00015498,2]
[319310482,1710656610279,-155.73123674,0.00015498,2]
[319310483,1710656610302,-257.78521006,0.00015498,2]
[319310484,1710656610325,-242.65607938,0.00015498,2]
[319310485,1710656610347,-277.44446506,0.00015498,2]
[319310486,1710656610373,-155.69751476,0.00015498,2]
[319310487,1710656610397,-265.06825087,0.00015498,2]
[319310488,1710656610424,-705.6055997,0.00015498,2]
[319310489,1710656610451,-242.7474663,0.00015498,2]
[319310490,1710656610475,-246.73022688,0.00015498,2]
[319310491,1710656610499,-156.0243926,0.00015498,2]
[319310492,1710656610522,-403.0990893,0.00015498,2]
[319310493,1710656610544,-155.0,0.00015498,2]
[319310494,1710656610567,-259.12300719,0.00015498,2]
[319310495,1710656610589,-206.4883405,0.00015498,2]
[319310496,1710656610610,-2972.01528783,0.00015498,2]
[319310497,1710656610634,-155.26668099,0.00015498,2]
[319310498,1710656610660,-259.75807317,0.00015498,2]
[319310499,1710656610682,-155.0,0.00015498,2]
[319310500,1710656610703,-487.49578033,0.00015498,2]
[319310501,1710656610724,-183.38169382,0.00015498,2]
[319310502,1710656610745,-1008.5102548,0.00015498,2]
[319310503,1710656610767,-232.69784137,0.00015498,2]
[319310504,1710656610788,-500.0,0.00015498,2]
[319310505,1710656610810,-500.0,0.00015498,2]
[319310506,1710656610834,-500.0,0.00015498,2]
[319310507,1710656610858,-500.0,0.00015498,2]
[319310508,1710656610883,-500.0,0.00015498,2]
[319310509,1710656610906,-500.0,0.00015498,2]
[319310510,1710656610929,-500.0,0.00015498,2]
[319310511,1710656610953,-500.0,0.00015498,2]
[319310512,1710656610977,-500.0,0.00015498,2]
[319310513,1710656611001,-500.0,0.00015498,2]
[319310514,1710656611022,-500.0,0.00015498,2]
[319310515,1710656611047,-500.0,0.00015498,2]
[319310516,1710656611073,-500.0,0.00015498,2]
[319310517,1710656611098,-500.0,0.00015498,2]
[319310518,1710656611120,-500.0,0.00015498,2]
[319310519,1710656611143,-500.0,0.00015498,2]
[319310520,1710656611167,-500.0,0.00015498,2]
[319310521,1710656611191,-500.0,0.00015498,2]
[319310522,1710656611215,-500.0,0.00015498,2]
[319310523,1710656611240,-500.0,0.00015498,2]
[319310524,1710656611265,-500.0,0.00015498,2]
[319310525,1710656611291,-523.61762966,0.00015498,2]
[319310526,1710656611317,-500.0,0.00015498,2]
[319310527,1710656611620,-500.0,0.00015498,2]
[319310528,1710656611643,-500.0,0.00015498,2]